bitfinex/quotes_BTCUSD_20250417
["timestamp","ask_amount","ask_price","bid_price","bid_amount"]
[1744852130666,0.01973986,84184.0,84183.0,0.63089783]
[1744852131263,0.01973986,84184.0,84183.0,1.04969783]
[1744852131664,0.01973986,84184.0,84183.0,1.04869783]
[1744852132141,0.01973986,84184.0,84183.0,1.05169783]
[1744852132346,0.01973986,84184.0,84183.0,1.04869783]
[1744852132768,0.02073986,84184.0,84183.0,1.05269783]
[1744852134398,1e-08,84184.0,84183.0,1.05269783]
[1744852134602,1e-08,84187.0,84186.0,0.28366919]
[1744852134797,1e-08,84187.0,84186.0,0.4031171]
[1744852135222,1e-08,84187.0,84186.0,0.76515838]
[1744852135424,1e-08,84187.0,84186.0,0.77342563]
[1744852135630,1e-08,84187.0,84186.0,0.78444937]
[1744852135843,1e-08,84187.0,84186.0,0.78744937]
[1744852138232,1e-08,84187.0,84186.0,0.79630491]
[1744852140083,1e-08,84187.0,84186.0,1.21510491]
[1744852147108,0.0482211,84218.0,84196.0,0.23753859]
[1744852147250,0.0004211,84218.0,84199.0,0.0477]
[1744852147450,0.0004211,84218.0,84199.0,0.75621293]
[1744852147658,0.0004211,84218.0,84199.0,0.70851293]
[1744852148341,0.0004211,84218.0,84199.0,0.71678018]
[1744852148502,0.0141495,84200.0,84199.0,0.72178018]
[1744852148702,0.0131495,84200.0,84199.0,0.71678018]
[1744852149484,0.0131495,84200.0,84199.0,0.72178018]
[1744852149671,0.0141495,84200.0,84199.0,0.72178018]
[1744852151860,0.0141495,84200.0,84199.0,0.72478018]
[1744852154079,0.0141495,84200.0,84199.0,0.71651293]
[1744852154285,0.0141495,84200.0,84199.0,0.72478007]
[1744852164846,0.0141495,84200.0,84199.0,0.72478007]
[1744852165747,0.0004211,84218.0,84199.0,1.11308007]
[1744852165952,0.00087566,84218.0,84217.0,0.23748174]
[1744852166260,0.00087566,84218.0,84217.0,0.92115679]
[1744852166807,0.00087566,84218.0,84217.0,0.94319807]
[1744852167008,0.00087566,84218.0,84217.0,0.95422181]
[1744852167824,0.00087566,84218.0,84217.0,0.95522181]
[1744852169071,0.00087566,84218.0,84217.0,0.95622181]
[1744852173380,0.04617566,84218.0,84217.0,0.04333216]
[1744852174115,0.06064645,84218.0,84217.0,0.04333216]
[1744852174318,0.06064645,84218.0,84217.0,0.03506502]
[1744852174666,0.06064645,84218.0,84217.0,0.03406502]
[1744852175039,0.10954645,84218.0,84217.0,0.03406502]
[1744852175298,0.10954645,84218.0,84217.0,0.001]
[1744852175466,0.047,84210.0,84208.0,0.13716]
[1744852175827,0.047,84210.0,84200.0,0.24940507]
[1744852175828,0.01187577,84205.0,84200.0,0.24940507]
[1744852176027,0.01187634,84201.0,84197.0,0.13716]
[1744852176241,0.29480617,84200.0,84197.0,0.13716]
[1744852176442,0.30916236,84200.0,84197.0,0.13716]
[1744852176704,0.30916236,84200.0,84198.0,0.03311811]
[1744852177427,0.30916236,84200.0,84199.0,0.02207874]
[1744852177570,0.31016236,84200.0,84199.0,0.02207874]
[1744852177773,0.30916236,84200.0,84199.0,0.03311811]
[1744852178252,0.31016236,84200.0,84199.0,0.03311811]
[1744852178388,0.30916236,84200.0,84199.0,0.03311811]
[1744852178591,0.07163267,84200.0,84199.0,0.03311811]
[1744852178808,0.07363267,84200.0,84199.0,0.03311811]
[1744852179017,0.06175619,84200.0,84199.0,0.03311811]
[1744852179328,0.002,84200.0,84199.0,0.27065062]
[1744852180007,0.002,84200.0,84199.0,0.2789238]
[1744852181164,0.002,84200.0,84199.0,0.39837171]
[1744852182240,0.06167493,84211.0,84207.0,0.23750851]
[1744852182763,0.01427965,84210.0,84208.0,0.02207874]
[1744852183878,0.01427965,84210.0,84209.0,0.01103937]
[1744852184495,0.01727965,84210.0,84209.0,0.01103937]
[1744852184877,0.01427965,84210.0,84209.0,0.01103937]
[1744852185090,0.01927965,84210.0,84209.0,0.01103937]
[1744852185555,0.01827965,84210.0,84209.0,0.01103937]
[1744852185874,0.01927965,84210.0,84209.0,0.01103937]
[1744852186487,0.01927965,84210.0,84208.0,0.01103937]
[1744852187326,0.01527965,84210.0,84208.0,0.01103937]
[1744852187707,0.01727965,84210.0,84208.0,0.01103937]
[1744852188029,0.01827965,84210.0,84208.0,0.01103937]
[1744852189244,0.03015472,84210.0,84207.0,0.23750851]
[1744852189508,0.01827965,84210.0,84209.0,0.2375043]
[1744852189655,0.03015472,84210.0,84207.0,0.23750964]
[1744852189860,0.01827965,84210.0,84208.0,0.0220489]
[1744852190265,0.01827965,84210.0,84209.0,0.01102451]
[1744852190460,0.01527965,84210.0,84209.0,0.01102451]
[1744852190807,0.01827965,84210.0,84209.0,0.03307341]
[1744852190983,0.01527965,84210.0,84209.0,0.03307341]
[1744852191326,0.01427965,84210.0,84209.0,0.03307341]
[1744852191503,0.01727965,84210.0,84209.0,0.03307341]
[1744852191650,0.01827965,84210.0,84209.0,0.03307341]
[1744852191864,0.02227965,84210.0,84209.0,0.03307341]
[1744852192270,0.25978113,84210.0,84209.0,0.03307341]
[1744852192726,0.02227965,84210.0,84209.0,0.03307341]
[1744852193135,0.02227965,84210.0,84209.0,0.01102451]
[1744852194042,0.02227965,84210.0,84209.0,0.03307272]
[1744852195153,0.02227965,84210.0,84209.0,0.01102451]
[1744852197025,0.02227965,84210.0,84209.0,0.03307655]
[1744852200057,0.02227965,84210.0,84209.0,0.01102451]
[1744852200939,0.02227965,84210.0,84209.0,0.03310007]
[1744852209751,0.02227965,84210.0,84209.0,0.04139864]
[1744852210336,0.02227965,84210.0,84209.0,0.27890294]
[1744852210760,0.008,84210.0,84209.0,0.27890294]
[1744852211567,0.007,84210.0,84209.0,0.27890294]
[1744852211804,0.01187408,84217.0,84213.0,0.23749155]
[1744852212139,0.02619739,84216.0,84213.0,0.23749155]
[1744852212339,0.02619739,84216.0,84214.0,0.03310007]
[1744852212600,0.01432317,84216.0,84215.0,0.02207556]
[1744852212934,0.00087566,84218.0,84215.0,0.02207556]
[1744852213196,0.0143204,84217.0,84216.0,0.00829432]
[1744852213361,0.0143204,84217.0,84216.0,0.03036988]
[1744852213563,0.0173204,84217.0,84216.0,0.04139439]
[1744852214047,0.00087566,84218.0,84217.0,0.23748174]
[1744852214177,0.00487566,84218.0,84217.0,0.23748174]
[1744852214377,0.00487566,84218.0,84217.0,0.26785162]
[1744852214378,0.0151914,84218.0,84217.0,0.26785162]
[1744852214642,0.00087566,84218.0,84217.0,0.26785162]
[1744852214790,0.00087566,84218.0,84217.0,0.32687613]
[1744852215328,0.00187566,84218.0,84217.0,0.32687613]
[1744852216445,0.00687566,84218.0,84217.0,0.32687613]
[1744852216641,0.00187566,84218.0,84217.0,0.32687613]
[1744852216941,0.00287566,84218.0,84217.0,0.32687613]
[1744852217083,0.00187566,84218.0,84217.0,0.32687613]
[1744852218766,0.00187566,84218.0,84217.0,0.32686029]
[1744852219934,0.00187566,84218.0,84217.0,0.37676029]
[1744852220209,0.00187566,84218.0,84217.0,0.4962082]
[1744852221161,0.00087566,84218.0,84217.0,0.4962082]
[1744852221566,0.00087566,84218.0,84217.0,0.4972082]
[1744852222896,0.00087566,84218.0,84217.0,0.4962082]
[1744852223103,0.00087566,84218.0,84217.0,0.4972082]
[1744852223681,0.00087566,84218.0,84217.0,0.4982082]
[1744852224093,0.00087566,84218.0,84217.0,0.49818333]
[1744852225215,0.00087566,84218.0,84217.0,0.91698333]
[1744852230125,0.00087566,84218.0,84217.0,0.81908333]
[1744852230465,0.23835458,84218.0,84217.0,0.46215368]
[1744852230782,0.01532612,84218.0,84217.0,0.46215368]
[1744852230979,0.01532612,84218.0,84217.0,0.4518752]
[1744852231237,0.01732612,84218.0,84217.0,0.0330752]
[1744852231594,0.02149691,84218.0,84217.0,0.0330752]
[1744852231804,0.02449691,84218.0,84217.0,0.0330752]
[1744852232475,0.02449691,84218.0,84217.0,0.27055694]
[1744852232803,0.00387566,84218.0,84217.0,0.27055694]
[1744852233003,0.02548316,84218.0,84217.0,0.27055694]
[1744852233678,0.02148316,84218.0,84217.0,0.27055694]
[1744852233851,0.00187566,84218.0,84217.0,0.27055694]
[1744852234057,0.00387566,84218.0,84217.0,0.27055694]
[1744852235495,0.00287566,84218.0,84217.0,0.27055694]
[1744852236491,0.00087566,84218.0,84217.0,0.27055694]
[1744852236825,0.00187566,84218.0,84217.0,0.27055694]
[1744852237784,0.00187566,84218.0,84217.0,0.39000485]
[1744852237967,0.00187566,84218.0,84217.0,0.39827611]
[1744852255534,0.00187566,84218.0,84217.0,0.53535611]
[1744852257721,0.00187566,84218.0,84217.0,0.58245611]
[1744852258791,0.00187566,84218.0,84217.0,0.58345611]
[1744852258967,0.00087566,84218.0,84217.0,0.58345611]
[1744852259367,0.00087566,84218.0,84217.0,0.58445611]
[1744852260121,0.00087566,84218.0,84217.0,1.00325611]
[1744852261334,0.00087566,84218.0,84217.0,1.00225611]
[1744852261572,0.00087566,84218.0,84217.0,1.00525611]
[1744852262622,0.00087566,84218.0,84217.0,1.00925611]
[1744852263298,0.00087566,84218.0,84217.0,1.02118923]
[1744852263619,0.00087566,84218.0,84217.0,1.01818923]
[1744852263969,0.00087566,84218.0,84217.0,1.02118923]
[1744852266783,0.00087566,84218.0,84217.0,1.36118923]
[1744852268873,0.0004213,84221.0,84220.0,0.67147328]
[1744852268874,1e-08,84221.0,84220.0,0.67147328]
[1744852269126,0.00013624,84221.0,84220.0,0.79092119]
[1744852269331,0.00013624,84221.0,84220.0,0.82399639]
[1744852269634,0.00013624,84221.0,84220.0,0.83226765]
[1744852270336,0.00013624,84221.0,84220.0,0.83526765]
[1744852270573,0.00013624,84221.0,84220.0,0.83726765]
[1744852272085,0.00013624,84221.0,84220.0,0.83226765]
[1744852272233,0.00013624,84221.0,84220.0,1.25306765]
[1744852272594,0.00013624,84221.0,84220.0,1.25606765]
[1744852272795,0.00013624,84221.0,84220.0,1.25306765]
[1744852272971,0.00013624,84221.0,84220.0,1.25806765]
[1744852273756,0.00013624,84221.0,84220.0,1.25606765]
[1744852274957,0.00013624,84221.0,84220.0,1.25906765]
[1744852278679,0.00013624,84221.0,84220.0,1.16506765]
[1744852279083,0.00013624,84221.0,84220.0,1.16506759]
[1744852279595,0.00013624,84221.0,84220.0,1.16206759]
[1744852279898,0.00013624,84221.0,84220.0,1.16006759]
[1744852280075,0.00013624,84221.0,84220.0,1.16306759]
[1744852286497,0.00013624,84221.0,84220.0,2.27386759]
[1744852286708,0.00013624,84221.0,84220.0,1.93386759]
[1744852287467,0.00013624,84221.0,84220.0,1.93086759]
[1744852287991,0.00013624,84221.0,84220.0,1.92786759]
[1744852288486,0.00013624,84221.0,84220.0,1.92886759]
[1744852290037,0.00013624,84221.0,84220.0,1.92786759]
[1744852290197,0.00013624,84221.0,84220.0,1.92791593]
[1744852290464,0.00013624,84221.0,84220.0,1.92891593]
[1744852292537,0.3313067,84221.0,84220.0,1.15319474]
[1744852292707,0.09383624,84221.0,84220.0,1.15319474]
[1744852292885,0.11453324,84221.0,84220.0,1.15319474]
[1744852294082,0.11453324,84221.0,84220.0,0.04239474]
[1744852294278,0.12907409,84221.0,84220.0,0.03412348]
[1744852294796,0.12907409,84221.0,84220.0,0.01102445]
[1744852295199,0.01187451,84214.0,84209.0,0.01102445]
[1744852295424,0.0468,84213.0,84209.0,0.01102445]
[1744852295610,0.07923492,84213.0,84209.0,0.02289966]
[1744852295810,0.05867465,84213.0,84210.0,0.01102445]
[1744852296156,0.02056027,84212.0,84211.0,0.02208945]
[1744852296452,0.02056027,84212.0,84211.0,0.25958811]
[1744852296855,0.0451,84219.0,84218.0,0.23747892]
[1744852297235,0.02053159,84219.0,84218.0,0.23747892]
[1744852297617,0.00013624,84221.0,84220.0,0.23747328]
[1744852297851,0.00013624,84221.0,84220.0,0.35692119]
[1744852298181,0.00013624,84221.0,84220.0,0.39000721]
[1744852298546,0.00013624,84221.0,84220.0,0.39827859]
[1744852298769,0.00013624,84221.0,84220.0,0.81707859]
[1744852299131,0.00213624,84221.0,84220.0,0.81707859]
[1744852301313,0.00013624,84221.0,84220.0,1.15907859]
[1744852301460,0.00013624,84221.0,84220.0,1.16007859]
[1744852301845,0.00013624,84221.0,84220.0,1.15707859]
[1744852301997,0.00013624,84221.0,84220.0,1.16007859]
[1744852302399,0.00013624,84221.0,84220.0,1.15707859]
[1744852302608,0.00013624,84221.0,84220.0,1.16107859]
[1744852303154,0.00013624,84221.0,84220.0,1.16407859]
[1744852303613,0.00013624,84221.0,84220.0,1.16107859]
[1744852303811,0.00013624,84221.0,84220.0,1.30107859]
[1744852304915,0.00013624,84221.0,84220.0,1.29707859]
[1744852305536,0.00013624,84221.0,84220.0,1.29407859]
[1744852305760,0.00013624,84221.0,84220.0,1.29507859]
[1744852306154,0.00013624,84221.0,84220.0,1.29407859]
[1744852306391,0.00013624,84221.0,84220.0,1.29807859]
[1744852306763,0.00013624,84221.0,84220.0,1.30107859]
[1744852307334,0.002,84229.0,84220.0,1.30107859]
[1744852307335,1e-08,84229.0,84228.0,0.57745072]
[1744852307529,0.0204213,84244.0,84228.0,0.57745072]
[1744852307530,0.0204213,84244.0,84243.0,0.23740844]
[1744852307730,0.0204213,84244.0,84243.0,0.92368272]
[1744852307936,0.0204213,84244.0,84243.0,0.9319541]
[1744852308154,0.0204213,84244.0,84243.0,0.95401375]
[1744852310115,0.0204213,84244.0,84243.0,0.95501375]
[1744852317511,0.0204213,84244.0,84243.0,0.95493375]
[1744852331586,0.0004215,84250.0,84249.0,0.23739154]
[1744852331797,0.00055768,84250.0,84249.0,0.72127237]
[1744852331926,0.00055768,84250.0,84249.0,0.7188991]
[1744852332412,0.00055768,84250.0,84249.0,0.73819685]
[1744852332614,0.00355768,84250.0,84249.0,0.73819685]
[1744852332814,0.00355768,84250.0,84249.0,0.74019685]
[1744852333040,0.00055768,84250.0,84249.0,0.74019685]
[1744852333243,0.00055768,84250.0,84249.0,0.73819685]
[1744852333774,0.00055768,84250.0,84249.0,0.74119685]
[1744852334869,0.00055768,84250.0,84249.0,0.74419685]
[1744852335393,0.0004215,84255.0,84252.0,0.62638308]
[1744852335394,1e-08,84255.0,84252.0,0.62638308]
[1744852335621,1e-08,84255.0,84254.0,0.11944791]
[1744852335758,1e-08,84255.0,84254.0,0.35682536]
[1744852336199,1e-08,84255.0,84254.0,0.71888501]
[1744852336399,1e-08,84255.0,84254.0,0.72715639]
[1744852337194,0.002,84259.0,84258.0,0.57736618]
[1744852337530,0.002,84259.0,84258.0,0.84548939]
[1744852337681,0.002,84259.0,84258.0,0.87582042]
[1744852338226,0.002,84259.0,84258.0,0.88684679]
[1744852338536,0.002,84259.0,84258.0,0.74992679]
[1744852338685,0.002,84259.0,84258.0,0.88676679]
[1744852339060,0.002,84259.0,84258.0,0.74992679]
[1744852339265,0.002,84259.0,84258.0,0.53501149]
[1744852339465,0.002,84259.0,84258.0,0.53601149]
[1744852340498,0.002,84259.0,84258.0,0.53501149]
[1744852340698,0.002,84259.0,84258.0,0.39817149]
[1744852340929,0.002,84259.0,84258.0,0.53501149]
[1744852341203,0.004,84259.0,84258.0,0.53501149]
[1744852349938,0.004,84259.0,84258.0,0.62671149]
[1744852350826,0.002,84259.0,84258.0,0.62671149]
[1744852351367,0.002,84259.0,84258.0,1.04551149]
[1744852351614,0.002,84259.0,84258.0,1.04651149]
[1744852351850,1e-08,84259.0,84258.0,1.38651149]
[1744852352068,1e-08,84259.0,84258.0,1.38551149]
[1744852352467,1e-08,84259.0,84258.0,1.38651149]
[1744852352818,1e-08,84259.0,84258.0,1.38551149]
[1744852353000,1e-08,84259.0,84258.0,1.38851149]
[1744852353888,1e-08,84259.0,84258.0,1.39051149]
[1744852355603,1e-08,84259.0,84258.0,1.29881149]
[1744852362227,1e-08,84259.0,84258.0,1.29581149]
[1744852362431,1e-08,84259.0,84258.0,1.29781149]
[1744852363013,1e-08,84259.0,84258.0,1.29581149]
[1744852363517,1e-08,84259.0,84258.0,1.29681149]
[1744852365059,1e-08,84259.0,84258.0,1.15997149]
[1744852365187,1e-08,84259.0,84258.0,1.29681149]
[1744852366450,8e-05,84267.0,84266.0,0.23734364]
[1744852366655,8e-05,84267.0,84266.0,0.77559155]
[1744852366973,8e-05,84267.0,84266.0,0.7976512]
[1744852367381,8e-05,84267.0,84266.0,0.80592258]
[1744852367737,8e-05,84267.0,84266.0,0.81694895]
[1744852367943,0.00108,84267.0,84266.0,0.81694895]
[1744852368142,0.00108,84267.0,84266.0,0.81794895]
[1744852376475,0.00108,84267.0,84266.0,0.95474895]
[1744852381972,0.23842083,84267.0,84266.0,0.4611574]
[1744852382169,0.01878451,84267.0,84266.0,0.5979574]
[1744852382325,0.00108,84267.0,84266.0,0.5979574]
[1744852383318,0.00108,84267.0,84266.0,0.71740531]
[1744852384328,8e-05,84267.0,84266.0,0.71640531]
[1744852385150,8e-05,84267.0,84266.0,0.71740531]
[1744852396700,8e-05,84267.0,84266.0,0.58060531]
[1744852396877,8e-05,84267.0,84266.0,0.4611574]
[1744852397280,0.01779622,84267.0,84266.0,0.4611574]
[1744852397504,8e-05,84267.0,84266.0,0.4601574]
[1744852397771,0.01779055,84267.0,84266.0,0.43809775]
[1744852397940,0.01779055,84267.0,84266.0,0.43909775]
[1744852398230,0.01779055,84267.0,84266.0,0.55854566]
[1744852398389,0.01779055,84267.0,84266.0,0.55754566]
[1744852398591,8e-05,84267.0,84266.0,0.68607428]
[1744852398847,0.00308,84267.0,84266.0,0.68607428]
[1744852399412,0.00308,84267.0,84266.0,0.54927428]
[1744852399612,0.00308,84267.0,84266.0,0.68603428]
[1744852400950,0.00308,84267.0,84266.0,0.54927428]
[1744852401326,0.00308,84267.0,84266.0,0.14778637]
[1744852401536,0.02059172,84267.0,84266.0,0.14778637]
[1744852403046,0.00308,84267.0,84266.0,0.14778637]
[1744852404323,0.00308,84267.0,84266.0,0.26960774]
[1744852404522,0.00308,84267.0,84266.0,0.26723428]
[1744852405640,8e-05,84267.0,84266.0,0.26723428]
[1744852405857,8e-05,84267.0,84266.0,0.28929127]
[1744852406567,8e-05,84267.0,84266.0,0.29029088]
[1744852406949,8e-05,84267.0,84266.0,0.28929088]
[1744852407305,8e-05,84267.0,84266.0,0.70809088]
[1744852407505,8e-05,84267.0,84266.0,0.70909088]
[1744852415795,8e-05,84267.0,84266.0,0.75699088]
[1744852417890,8e-05,84267.0,84266.0,0.75697614]
[1744852419662,8e-05,84267.0,84266.0,0.70907614]
[1744852425781,8e-05,84267.0,84266.0,0.57231614]
[1744852425939,8e-05,84267.0,84266.0,0.70903614]
[1744852428288,8e-05,84267.0,84266.0,0.57231614]
[1744852428587,8e-05,84267.0,84266.0,0.70903614]
[1744852445035,8e-05,84267.0,84266.0,0.68699389]
[1744852445872,8e-05,84267.0,84266.0,0.67596791]
[1744852457207,8e-05,84267.0,84266.0,0.69803888]
[1744852458899,8e-05,84267.0,84266.0,0.67596791]
[1744852462337,8e-05,84267.0,84266.0,0.53924791]
[1744852462536,8e-05,84267.0,84266.0,0.67596791]
[1744852481372,0.04838,84267.0,84266.0,0.55652]
[1744852481614,0.04838,84267.0,84266.0,0.13772]
[1744852481820,0.06593351,84267.0,84266.0,0.13772]
[1744852482389,0.07764383,84267.0,84266.0,0.001]
[1744852482591,0.12664383,84267.0,84266.0,0.001]
[1744852482877,0.01186774,84262.0,84259.0,1.11024]
[1744852483055,0.0483,84250.0,84244.0,0.01187028]
[1744852483258,0.0483,84250.0,84247.0,0.01186985]
[1744852484432,0.01740141,84249.0,84247.0,0.01186985]
[1744852485210,0.01740141,84249.0,84247.0,0.24926649]
[1744852485639,0.05856873,84255.0,84251.0,0.01186929]
[1744852485839,0.02927704,84254.0,84251.0,0.01186929]
[1744852486046,0.01186901,84253.0,84248.0,0.24926406]
[1744852486247,0.01741515,84252.0,84248.0,0.24926406]
[1744852486441,0.001,84250.0,84248.0,0.24926406]
[1744852486667,0.01740141,84249.0,84248.0,0.24926406]
[1744852486878,0.01186929,84251.0,84248.0,0.24926406]
[1744852487130,0.01186915,84252.0,84249.0,0.01186957]
[1744852487314,0.01186915,84252.0,84250.0,0.13672]
[1744852487517,0.01186887,84254.0,84251.0,0.01186929]
[1744852487933,0.2373859,84251.0,84250.0,0.13672]
[1744852488233,0.2393859,84251.0,84250.0,0.13672]
[1744852488786,0.002,84251.0,84250.0,0.13672]
[1744852490006,0.01186887,84254.0,84250.0,0.14858943]
[1744852490215,0.003,84254.0,84252.0,0.24925172]
[1744852490430,0.0454,84258.0,84256.0,0.23737049]
[1744852490630,0.00202209,84269.0,84255.0,0.24924105]
[1744852490631,8e-05,84267.0,84266.0,0.23734364]
[1744852491949,8e-05,84267.0,84266.0,0.36867234]
[1744852492155,8e-05,84267.0,84266.0,0.35679155]
[1744852492832,8e-05,84267.0,84266.0,0.49351155]
[1744852493237,0.00708,84267.0,84266.0,0.49351155]
[1744852493466,8e-05,84267.0,84266.0,0.49351155]
[1744852493684,0.00308,84267.0,84266.0,0.49351155]
[1744852503480,0.00308,84267.0,84266.0,0.49351155]
[1744852506057,0.00308,84267.0,84266.0,0.13672]
[1744852506445,0.02061835,84267.0,84266.0,0.13672]
[1744852506645,0.00308,84267.0,84266.0,0.13672]
[1744852506811,0.02061835,84267.0,84266.0,0.13672]
[1744852507212,0.00308,84267.0,84266.0,0.13672]
[1744852509435,0.05238,84267.0,84266.0,0.13672]
[1744852510058,0.06989882,84267.0,84266.0,0.13672]
[1744852510235,0.06989882,84267.0,84266.0,0.37406364]
[1744852510236,0.02059882,84267.0,84266.0,0.37406364]
[1744852510565,0.00308,84267.0,84266.0,0.37406364]
[1744852512742,0.00308,84267.0,84266.0,0.49351155]
[1744852513949,8e-05,84267.0,84266.0,0.49351155]
[1744852514311,0.00208,84267.0,84266.0,0.49351155]
[1744852518505,0.00208,84267.0,84266.0,0.91231155]
[1744852518912,8e-05,84267.0,84266.0,0.91231155]
[1744852519316,0.00108,84267.0,84266.0,0.91231155]
[1744852520402,0.00108,84267.0,84266.0,0.93435683]
[1744852520623,0.00108,84267.0,84266.0,0.97955683]
[1744852520624,8e-05,84267.0,84266.0,0.97955683]
[1744852520986,8e-05,84267.0,84266.0,0.98055683]
[1744852524725,0.0004214,84278.0,84266.0,0.98055683]
[1744852524726,0.00062,84300.0,84288.0,0.5772817]
[1744852524932,0.00062,84300.0,84288.0,1.89330698]
[1744852525102,0.00062,84300.0,84288.0,2.01275489]
[1744852525424,0.00255768,84289.0,84288.0,2.01275489]
[1744852525573,0.00255768,84289.0,84288.0,1.99070961]
[1744852525774,0.00255768,84289.0,84288.0,1.99170961]
[1744852526175,0.00255768,84289.0,84288.0,1.99070961]
[1744852526530,0.00255768,84289.0,84288.0,2.0136939]
[1744852526731,0.00255768,84289.0,84288.0,2.0156939]
[1744852527315,0.00255768,84289.0,84288.0,2.0136939]
[1744852527640,0.00255768,84289.0,84288.0,1.9677939]
[1744852527797,0.00255768,84289.0,84288.0,1.9697939]
[1744852529545,0.00255768,84289.0,84288.0,1.4920339]
[1744852529719,0.00255768,84289.0,84288.0,1.13530429]
[1744852530063,0.04965768,84289.0,84288.0,1.11332]
[1744852530411,0.06192912,84289.0,84288.0,1.11332]
[1744852530614,0.06192912,84289.0,84288.0,1.11132]
[1744852531264,0.06192912,84289.0,84288.0,1.11032]
[1744852531473,0.04965768,84289.0,84288.0,1.11032]
[1744852531674,0.05265768,84289.0,84288.0,1.11032]
[1744852531925,0.06205806,84289.0,84288.0,1.11032]
[1744852532108,0.06605806,84289.0,84288.0,1.11032]
[1744852535844,0.11345806,84289.0,84288.0,1.11032]
[1744852537606,0.24914578,84288.0,84285.0,0.13776]
[1744852538106,0.01240953,84287.0,84285.0,0.13776]
[1744852539349,0.01540953,84287.0,84285.0,0.13776]
[1744852541563,0.01540953,84287.0,84286.0,0.35673524]
[1744852542000,0.003,84287.0,84286.0,0.35673524]
[1744852542173,0.003,84287.0,84286.0,0.37872222]
[1744852542744,0.003,84287.0,84286.0,0.37972222]
[1744852543576,0.00255768,84289.0,84288.0,0.2372817]
[1744852543898,0.00255768,84289.0,84288.0,0.37871659]
[1744852545607,0.00455768,84289.0,84288.0,0.51647659]
[1744852553832,0.00255768,84289.0,84288.0,0.51647659]
[1744852554387,0.00355768,84289.0,84288.0,0.51647659]
[1744852555332,0.00355768,84289.0,84288.0,0.51747659]
[1744852556343,0.00355768,84289.0,84288.0,0.9810545]
[1744852557398,0.00255768,84289.0,84288.0,1.0290545]
[1744852557724,0.00255768,84289.0,84288.0,1.0300545]
[1744852557929,0.00255768,84289.0,84288.0,1.0280545]
[1744852558239,0.00255768,84289.0,84288.0,1.0290545]
[1744852558457,0.00255768,84289.0,84288.0,1.0310545]
[1744852558962,0.00255768,84289.0,84288.0,1.0290545]
[1744852559186,0.00255768,84289.0,84288.0,1.0310545]
[1744852560679,0.00255768,84289.0,84288.0,0.9842545]
[1744852560882,0.00255768,84289.0,84288.0,0.9362545]
[1744852561090,0.00255768,84289.0,84288.0,0.9355345]
[1744852564519,0.00255768,84289.0,84288.0,0.9325345]
[1744852564902,0.00255768,84289.0,84288.0,0.9345345]
[1744852565351,0.00255768,84289.0,84288.0,0.9325345]
[1744852565557,0.00255768,84289.0,84288.0,0.9335345]
[1744852565782,0.00255768,84289.0,84288.0,0.9345345]
[1744852566302,0.05195768,84289.0,84288.0,0.02398698]
[1744852566502,0.09745768,84289.0,84288.0,0.02398698]
[1744852566701,0.10736853,84289.0,84288.0,0.02398698]
[1744852567323,0.10736853,84289.0,84288.0,0.02298698]
[1744852567524,0.10736853,84289.0,84288.0,0.02198698]
[1744852567730,0.01186478,84283.0,84280.0,0.02198698]
[1744852568163,0.00988622,84282.0,84280.0,0.02198698]
[1744852568371,0.01186478,84283.0,84281.0,0.02198698]
[1744852569052,0.01186478,84283.0,84279.0,0.66594999]
[1744852569053,0.01186478,84283.0,84282.0,0.02198698]
[1744852569261,0.01486478,84283.0,84282.0,0.02198698]
[1744852569456,0.02475558,84283.0,84282.0,0.02198698]
[1744852570945,0.02175558,84283.0,84282.0,0.02198698]
[1744852571347,0.02475558,84283.0,84282.0,0.02198698]
[1744852571956,0.02775558,84283.0,84282.0,0.02198698]
[1744852574888,0.0158908,84283.0,84282.0,0.02198698]
[1744852575089,0.0158908,84283.0,84282.0,0.14143489]
[1744852575476,0.006,84283.0,84282.0,0.14380769]
[1744852576175,0.006,84283.0,84282.0,0.14143489]
[1744852576791,0.006,84283.0,84282.0,0.14380758]
[1744852577213,0.006,84283.0,84282.0,0.60598549]
[1744852577418,0.006,84283.0,84282.0,0.6036128]
[1744852577932,0.00255768,84289.0,84286.0,0.01186436]
[1744852578097,0.00255768,84289.0,84287.0,0.11944791]
[1744852578294,0.00255768,84289.0,84287.0,0.35673242]
[1744852578499,0.00255768,84289.0,84288.0,0.02198698]
[1744852578702,0.00255768,84289.0,84288.0,0.14143489]
[1744852580827,0.00355768,84289.0,84288.0,0.14243489]
[1744852584894,0.00355768,84289.0,84288.0,0.15345196]
[1744852586156,0.00355768,84289.0,84288.0,0.29065196]
[1744852588319,0.00355768,84289.0,84288.0,0.27963489]
[1744852601019,0.00355768,84289.0,84288.0,0.14243489]
[1744852603425,0.00355768,84289.0,84288.0,0.14255489]
[1744852607660,0.00355768,84289.0,84288.0,0.27975489]
[1744852609269,0.00355768,84289.0,84288.0,0.29080829]
[1744852612470,0.00355768,84289.0,84288.0,0.7075862]
[1744852615604,0.00355768,84289.0,84288.0,0.5703862]
[1744852615868,0.01343217,84289.0,84288.0,0.5703862]
[1744852616926,0.00355768,84289.0,84288.0,0.5703862]
[1744852642929,0.00355768,84289.0,84288.0,0.7073462]
[1744852644699,0.00355768,84289.0,84288.0,0.70735955]
[1744852647264,0.00355768,84289.0,84288.0,0.70707955]
[1744852663016,0.00355768,84289.0,84288.0,0.69602615]
[1744852665107,0.00355768,84289.0,84288.0,0.57657824]
[1744852665325,0.01337841,84289.0,84288.0,0.15980033]
[1744852665534,0.01337841,84289.0,84288.0,0.02312033]
[1744852666218,0.01237841,84289.0,84288.0,0.02312033]
[1744852666516,0.01537841,84289.0,84288.0,0.02312033]
[1744852667062,0.01537841,84289.0,84288.0,0.02212033]
[1744852669176,0.01537841,84289.0,84288.0,0.25940203]
[1744852669690,0.00555768,84289.0,84288.0,0.37884994]
[1744852670827,0.00255768,84289.0,84288.0,0.37984994]
[1744852671028,0.00255768,84289.0,84288.0,0.79662785]
[1744852671273,0.00255768,84289.0,84288.0,0.79562785]
[1744852671648,0.00255768,84289.0,84288.0,0.79662785]
[1744852674369,0.00255768,84289.0,84288.0,0.84432785]
[1744852676326,0.00255768,84289.0,84288.0,0.84532785]
[1744852677010,0.00255768,84289.0,84288.0,0.84432785]
[1744852677387,0.00255768,84289.0,84288.0,0.84632785]
[1744852680440,0.0004214,84293.0,84292.0,0.62657044]
[1744852680644,0.0004214,84293.0,84292.0,0.79371835]
[1744852680847,0.0004214,84293.0,84292.0,0.83785755]
[1744852681049,0.0004214,84293.0,84292.0,0.85997788]
[1744852681654,0.0004214,84293.0,84292.0,0.86097788]
[1744852682330,0.0004214,84293.0,84292.0,0.84894446]
[1744852682509,0.0004214,84293.0,84292.0,0.81583868]
[1744852682954,0.0004214,84293.0,84292.0,0.82083868]
[1744852683615,0.0004214,84293.0,84292.0,0.82583868]
[1744852685668,0.0004214,84293.0,84292.0,1.24261659]